{"text_format":"3","workbook":"xlsx","n_sheets":5,"sheets":["Социально-коммуник","Познавательное развитие","Речевое развитие","Худ-эстетич","Физ развитие"],"read":"whole","date_system":"1900"}

{"sheet":"Социально-коммуник","index":0,"n_rows":97,"n_cols":13,"rows_kept":97,"merged":[[4,1,5,1],[4,2,5,2],[4,3,4,9],[7,1,8,1],[9,1,10,1],[11,1,12,1],[13,1,14,1],[15,1,16,1],[17,1,18,1],[19,1,20,1],[21,1,22,1],[23,1,24,1],[25,1,26,1],[27,1,28,1],[29,1,30,1],[31,1,32,1],[33,1,34,1],[35,1,36,1],[37,1,38,1],[39,1,40,1],[41,1,42,1],[43,1,44,1],[45,1,46,1],[47,1,48,1],[49,1,50,1],[51,1,52,1],[53,1,54,1],[55,1,56,1],[57,1,58,1],[59,1,60,1],[61,1,62,1],[63,1,64,1],[65,1,66,1],[67,1,68,1],[70,1,71,1],[72,1,73,1],[74,1,75,1],[83,1,84,1],[83,2,84,2],[83,3,83,5],[85,1,86,1],[87,1,88,1],[89,1,90,1],[91,1,92,1],[93,1,94,1],[95,1,96,1]]}
["КАРТА ОЦЕНКИ УРОВНЕЙ ЭФФЕКТИВНОСТИ ПЕДАГОГИЧЕСКИХ ВОЗДЕЙСТВИЙ (по Афонькиной Ю.А. и Верещагиной Н.В.)"]
["Образовательная область «Социально-коммуникативное развитие»",{"$nulls":11},"Дата заполнения:"]
["Возрастная группа                1 младшая",{"$nulls":5},"Воспитатели:",{"$nulls":5},"Начало учебного года"]
[{"$nulls":12},"Конец учебного года"]
[null,"Ф. И. ребенка","Период","Критерии оценки уровней эффективности педагогических воздействий"]
[{"$nulls":3},"Старается соблюдать правила поведения в общественных местах, в общении со взрослыми и сверстниками, в природе","Понимает социальную оценку поступков сверстников или героев литературных произведений","Имитирует мимику, движения, интонацию героев литературных произведений.","Принимает на себя роль, объединяет несколько игровых действий в единую сюжетную линию.","Способен придерживаться игровых правил в дидактических играх.","Разыгрывает самостоятельно и по просьбе взрослого отрывки из знакомых сказок.","Итоговый показатель по каждому ребенку (среднее значение)"]
[null,1,2,3,4,5,6,7,8,9]
[null,1,"Начало уч. г.",1,1,2,3,3,2,{"$f":"SUM(D8:I8)/6","v":2}]
[null,null,"Конец уч. г.",{"$nulls":6},{"$f":"SUM(D9:I9)/6","v":0}]
[null,2,"Начало уч. г.",{"$nulls":6},0]
[null,null,"Конец уч. г.",{"$nulls":6},0]
[null,3,"Начало уч. г.",{"$nulls":6},0]
[null,null,"Конец уч. г.",{"$nulls":6},0]
[null,4,"Начало уч. г.",{"$nulls":6},0]
[null,null,"Конец уч. г.",{"$nulls":6},0]
[null,5,"Начало уч. г.",{"$nulls":6},0]
[null,null,"Конец уч. г.",{"$nulls":6},0]
[null,6,"Начало уч. г.",{"$nulls":6},0]
[null,null,"Конец уч. г.",{"$nulls":6},0]
[null,7,"Начало уч. г.",{"$nulls":6},0]
[null,null,"Конец уч. г.",{"$nulls":6},0]
[null,8,"Начало уч. г.",{"$nulls":6},0]
[null,null,"Конец уч. г.",{"$nulls":6},0]
[null,9,"Начало уч. г.",{"$nulls":6},0]
[null,null,"Конец уч. г.",{"$nulls":6},0]
[null,10,"Начало уч. г.",{"$nulls":6},0]
[null,null,"Конец уч. г.",{"$nulls":6},0]
[null,11,"Начало уч. г.",{"$nulls":6},0]
[null,null,"Конец уч. г.",{"$nulls":6},0]
[null,12,"Начало уч. г.",{"$nulls":6},0]
[null,null,"Конец уч. г.",{"$nulls":6},0]
[null,13,"Начало уч. г.",{"$nulls":6},0]
[null,null,"Конец уч. г.",{"$nulls":6},0]
[null,14,"Начало уч. г.",{"$nulls":6},0]
[null,null,"Конец уч. г.",{"$nulls":6},0]
[null,15,"Начало уч. г.",{"$nulls":6},0]
[null,null,"Конец уч. г.",{"$nulls":6},0]
[null,16,"Начало уч. г.",{"$nulls":6},0]
[null,null,"Конец уч. г.",{"$nulls":6},0]
[null,17,"Начало уч. г.",{"$nulls":6},0]
[null,null,"Конец уч. г.",{"$nulls":6},0]
[null,18,"Начало уч. г.",{"$nulls":6},0]
[null,null,"Конец уч. г.",{"$nulls":6},0]
[null,19,"Начало уч. г.",{"$nulls":6},0]
[null,null,"Конец уч. г.",{"$nulls":6},0]
[null,20,"Начало уч. г.",{"$nulls":6},0]
[null,null,"Конец уч. г.",{"$nulls":6},0]
[null,21,"Начало уч. г.",{"$nulls":6},0]
[null,null,"Конец уч. г.",{"$nulls":6},0]
[null,22,"Начало уч. г.",{"$nulls":6},0]
[null,null,"Конец уч. г.",{"$nulls":6},0]
[null,23,"Начало уч. г.",{"$nulls":6},0]
[null,null,"Конец уч. г.",{"$nulls":6},0]
[null,24,"Начало уч. г.",{"$nulls":6},0]
[null,null,"Конец уч. г.",{"$nulls":6},0]
[null,25,"Начало уч. г.",{"$nulls":6},0]
[null,null,"Конец уч. г.",{"$nulls":6},0]
[null,26,"Начало уч. г.",{"$nulls":6},0]
[null,null,"Конец уч. г.",{"$nulls":6},0]
[null,27,"Начало уч. г.",{"$nulls":6},0]
[null,null,"Конец уч. г.",{"$nulls":6},0]
[null,28,"Начало уч. г.",{"$nulls":6},0]
[null,null,"Конец уч. г.",{"$nulls":6},0]
[null,29,"Начало уч. г.",{"$nulls":6},0]
[null,null,"Конец уч. г.",{"$nulls":6},0]
[null,30,"Начало уч. г.",{"$nulls":6},0]
[null,null,"Конец уч. г.",{"$nulls":6},0]
[null,31,"Начало уч. г.",{"$nulls":6},0]
[null,null,"Конец уч. г.",{"$nulls":6},0]
[]
[null,"Высокий","Начало уч. г.",{"$f":"(В*100)/31","v":{"$error":"#NAME?"}},{"$f":"(В*100)/31","v":{"$error":"#NAME?"}},{"$error":"#NAME?"},{"$error":"#NAME?"},{"$error":"#NAME?"},{"$error":"#NAME?"},null,null,"В - количество высоких баллов"]
[null,null,"Конец уч. г.",{"$f":"(B*100)/31","v":{"$error":"#NAME?"}},{"$error":"#NAME?"},{"$error":"#NAME?"},{"$error":"#NAME?"},{"$error":"#NAME?"},{"$error":"#NAME?"}]
[null,"Средний","Начало уч. г.",{"$f":"(С*100)/31","v":{"$error":"#NAME?"}},{"$f":"(С*100)/31","v":{"$error":"#NAME?"}},{"$error":"#NAME?"},{"$error":"#NAME?"},{"$error":"#NAME?"},{"$error":"#NAME?"},null,null,"С - количество средних баллов"]
[null,null,"Конец уч. г.",{"$f":"(С*100)/31","v":{"$error":"#NAME?"}},{"$error":"#NAME?"},{"$error":"#NAME?"},{"$error":"#NAME?"},{"$error":"#NAME?"},{"$error":"#NAME?"}]
[null,"Низкий","Начало уч. г.",{"$f":"(Н*100)/31","v":{"$error":"#NAME?"}},{"$f":"(Н*100)/31","v":{"$error":"#NAME?"}},{"$error":"#NAME?"},{"$error":"#NAME?"},{"$error":"#NAME?"},{"$error":"#NAME?"},null,null,"Н - количество низких баллов"]
[null,null,"Конец уч. г.",{"$f":"(Н*100)/31","v":{"$error":"#NAME?"}},{"$error":"#NAME?"},{"$error":"#NAME?"},{"$error":"#NAME?"},{"$error":"#NAME?"},{"$error":"#NAME?"}]
[]
[{"$nulls":3},"Высокий 3 балла",null,null,"Процент считаем так: количество детей (допустим) с низким уровнем 6*100/25(количество детей в группе)=24%"]
[{"$nulls":3},"Средний 2 балла"]
[{"$nulls":3},"Низкий 1 балл"]
[]
[null,"СВОДНАЯ ТАБЛИЦА ОЦЕНКИ УРОВНЕЙ ЭФФЕКТИВНОСТИ ПЕДАГОГИЧЕСКИХ ВОЗДЕЙСТВИЙ "]
[null,"Образовательная область «Социально-коммуникативное развитие»"]
[null,"Направления","Период","Уровни (%)"]
[{"$nulls":3},"высокий","средний","низкий"]
[null,"Старается соблюдать правила поведения в общественных местах, в общении со взрослыми и сверстниками, в природе","Начало уч. г."]
[null,null,"Конец уч. г."]
[null,"Понимает социальную оценку поступков сверстников или героев литературных произведений","Начало уч. г."]
[null,null,"Конец уч. г."]
[null,"Имитирует мимику, движения, интонацию героев литературных произведений.","Начало уч. г."]
[null,null,"Конец уч. г."]
[null,"Принимает на себя роль, объединяет несколько игровых действий в единую сюжетную линию.","Начало уч. г."]
[null,null,"Конец уч. г."]
[null,"Способен придерживаться игровых правил в дидактических играх.","Начало уч.г."]
[null,null,"Конец уч.г."]
[null,"Разыгрывает самостоятельно и по просьбе взрослого отрывки из знакомых сказок.","Начало уч.г."]
[null,null,"Конец уч.г."]

{"sheet":"Познавательное развитие","index":1,"n_rows":102,"n_cols":12,"rows_kept":102,"merged":[[6,1,7,1],[6,2,7,2],[6,3,6,11],[9,1,10,1],[11,1,12,1],[13,1,14,1],[15,1,16,1],[17,1,18,1],[19,1,20,1],[21,1,22,1],[23,1,24,1],[25,1,26,1],[27,1,28,1],[29,1,30,1],[31,1,32,1],[33,1,34,1],[35,1,36,1],[37,1,38,1],[39,1,40,1],[41,1,42,1],[43,1,44,1],[45,1,46,1],[47,1,48,1],[49,1,50,1],[51,1,52,1],[53,1,54,1],[55,1,56,1],[57,1,58,1],[59,1,60,1],[61,1,62,1],[63,1,64,1],[65,1,66,1],[67,1,68,1],[69,1,70,1],[72,1,73,1],[74,1,75,1],[76,1,77,1],[84,1,85,1],[84,2,85,2],[84,3,84,5],[86,1,87,1],[88,1,89,1],[90,1,91,1],[92,1,93,1],[94,1,95,1],[96,1,97,1],[98,1,99,1],[100,1,103,1],[101,2,103,2],[101,3,103,3],[101,4,103,4],[101,5,103,5]]}
["КАРТА ОЦЕНКИ УРОВНЕЙ ЭФФЕКТИВНОСТИ ПЕДАГОГИЧЕСКИХ ВОЗДЕЙСТВИЙ (по Афонькиной Ю.А. и Верещагиной Н.В.)"]
["Образовательная область «Познавательное рзвитие»"]
["Возрастная группа                1 младшая",{"$nulls":6},"Воспитатели:"]
[]
[]
[]
[null,"Ф. И. ребенка","Период","Критерии оценки уровней эффективности педагогических воздействий"]
[{"$nulls":3},"Знает свои имя и фамилию, имена родителей","Рассматривает иллюстрированные издания детских книг, проявляет интерес к ним. ","Ориентируется в помещениях детского сада, называет свой поселок.","Знает и называет некоторые растения и животных, их детенышей, игрушки.","Правильно определяет количественное соотношение двух групп предметов, понимает конкретный смысл слов «больше», «меньше», «столько же»","Различает круг, квадрат, треугольник, предметы, имеющие углы и круглую форму","Умеет группировать предметы по цвету, размеру, форме","Понимает смысл обозначений: вверху-внизу, впереди-сзади, слева-справа, на, над-под, верхняя-нижняя. Различает день-ночь, зима-лето","Итоговый показатель по каждому ребенку (среднее значение)"]
[null,1,2,3,4,5,6,7,8,9,10,11]
[null,1,"Начало уч. г.",3,1,2,3,3,2,1,2,{"$f":"SUM(D10:K10)/8","v":{"v":2.125,"d":"2"}}]
[null,null,"Конец уч. г.",{"$nulls":8},{"$f":"SUM(D11:K11)/8","v":0}]
[null,2,"Начало уч. г.",{"$nulls":8},0]
[null,null,"Конец уч. г.",{"$nulls":8},0]
[null,3,"Начало уч. г.",{"$nulls":8},0]
[null,null,"Конец уч. г.",{"$nulls":8},0]
[null,4,"Начало уч. г.",{"$nulls":8},0]
[null,null,"Конец уч. г.",{"$nulls":8},0]
[null,5,"Начало уч. г.",{"$nulls":8},0]
[null,null,"Конец уч. г.",{"$nulls":8},0]
[null,6,"Начало уч. г.",{"$nulls":8},0]
[null,null,"Конец уч. г.",{"$nulls":8},0]
[null,7,"Начало уч. г.",{"$nulls":8},0]
[null,null,"Конец уч. г.",{"$nulls":8},0]
[null,8,"Начало уч. г.",{"$nulls":8},0]
[null,null,"Конец уч. г.",{"$nulls":8},0]
[null,9,"Начало уч. г.",{"$nulls":8},0]
[null,null,"Конец уч. г.",{"$nulls":8},0]
[null,10,"Начало уч. г.",{"$nulls":8},0]
[null,null,"Конец уч. г.",{"$nulls":8},0]
[null,11,"Начало уч. г.",{"$nulls":8},0]
[null,null,"Конец уч. г.",{"$nulls":8},0]
[null,12,"Начало уч. г.",{"$nulls":8},0]
[null,null,"Конец уч. г.",{"$nulls":8},0]
[null,13,"Начало уч. г.",{"$nulls":8},0]
[null,null,"Конец уч. г.",{"$nulls":8},0]
[null,14,"Начало уч. г.",{"$nulls":8},0]
[null,null,"Конец уч. г.",{"$nulls":8},0]
[null,15,"Начало уч. г.",{"$nulls":8},0]
[null,null,"Конец уч. г.",{"$nulls":8},0]
[null,16,"Начало уч. г.",{"$nulls":8},0]
[null,null,"Конец уч. г.",{"$nulls":8},0]
[null,17,"Начало уч. г.",{"$nulls":8},0]
[null,null,"Конец уч. г.",{"$nulls":8},0]
[null,18,"Начало уч. г.",{"$nulls":8},0]
[null,null,"Конец уч. г.",{"$nulls":8},0]
[null,19,"Начало уч. г.",{"$nulls":8},0]
[null,null,"Конец уч. г.",{"$nulls":8},0]
[null,20,"Начало уч. г.",{"$nulls":8},0]
[null,null,"Конец уч. г.",{"$nulls":8},0]
[null,21,"Начало уч. г.",{"$nulls":8},0]
[null,null,"Конец уч. г.",{"$nulls":8},0]
[null,22,"Начало уч. г.",{"$nulls":8},0]
[null,null,"Конец уч. г.",{"$nulls":8},0]
[null,23,"Начало уч. г.",{"$nulls":8},0]
[null,null,"Конец уч. г.",{"$nulls":8},0]
[null,24,"Начало уч. г.",{"$nulls":8},0]
[null,null,"Конец уч. г.",{"$nulls":8},0]
[null,25,"Начало уч. г.",{"$nulls":8},0]
[null,null,"Конец уч. г.",{"$nulls":8},0]
[null,26,"Начало уч. г.",{"$nulls":8},0]
[null,null,"Конец уч. г.",{"$nulls":8},0]
[null,27,"Начало уч. г.",{"$nulls":8},0]
[null,null,"Конец уч. г.",{"$nulls":8},0]
[null,28,"Начало уч. г.",{"$nulls":8},0]
[null,null,"Конец уч. г.",{"$nulls":8},0]
[null,29,"Начало уч. г.",{"$nulls":8},0]
[null,null,"Конец уч. г.",{"$nulls":8},0]
[null,30,"Начало уч. г.",{"$nulls":8},0]
[null,null,"Конец уч. г.",{"$nulls":8},0]
[null,31,"Начало уч. г.",{"$nulls":8},0]
[null,null,"Конец уч. г.",{"$nulls":8},0]
[]
[null,"Высокий","Начало уч. г.",{"$f":"(В*100)/31","v":{"$error":"#NAME?"}},{"$f":"(В*100)/31","v":{"$error":"#NAME?"}},{"$error":"#NAME?"},{"$error":"#NAME?"},{"$error":"#NAME?"},{"$error":"#NAME?"},{"$error":"#NAME?"},{"$error":"#NAME?"}]
[null,null,"Конец уч. г.",{"$f":"(B*100)/31","v":{"$error":"#NAME?"}},{"$error":"#NAME?"},{"$error":"#NAME?"},{"$error":"#NAME?"},{"$error":"#NAME?"},{"$error":"#NAME?"},{"$error":"#NAME?"},{"$error":"#NAME?"}]
[null,"Средний","Начало уч. г.",{"$f":"(С*100)/31","v":{"$error":"#NAME?"}},{"$f":"(С*100)/31","v":{"$error":"#NAME?"}},{"$error":"#NAME?"},{"$error":"#NAME?"},{"$error":"#NAME?"},{"$error":"#NAME?"},{"$error":"#NAME?"},{"$error":"#NAME?"}]
[null,null,"Конец уч. г.",{"$f":"(С*100)/31","v":{"$error":"#NAME?"}},{"$error":"#NAME?"},{"$error":"#NAME?"},{"$error":"#NAME?"},{"$error":"#NAME?"},{"$error":"#NAME?"},{"$error":"#NAME?"},{"$error":"#NAME?"}]
[null,"Низкий","Начало уч. г.",{"$f":"(Н*100)/31","v":{"$error":"#NAME?"}},{"$f":"(Н*100)/31","v":{"$error":"#NAME?"}},{"$error":"#NAME?"},{"$error":"#NAME?"},{"$error":"#NAME?"},{"$error":"#NAME?"},{"$error":"#NAME?"},{"$error":"#NAME?"}]
[null,null,"Конец уч. г.",{"$f":"(Н*100)/31","v":{"$error":"#NAME?"}},{"$error":"#NAME?"},{"$error":"#NAME?"},{"$error":"#NAME?"},{"$error":"#NAME?"},{"$error":"#NAME?"},{"$error":"#NAME?"},{"$error":"#NAME?"}]
[]
[{"$nulls":3},"Высокий 3 балла",null,null,"Процент считаем так: количество детей (допустим) с низким уровнем 6*100/25(количество детей в группе)=24%"]
[{"$nulls":3},"Средний 2 балла"]
[{"$nulls":3},"Низкий 1 балл"]
[null,"СВОДНАЯ ТАБЛИЦА ОЦЕНКИ УРОВНЕЙ ЭФФЕКТИВНОСТИ ПЕДАГОГИЧЕСКИХ ВОЗДЕЙСТВИЙ "]
[null,"Образовательная область «Познавательное развитие»"]
[null,"Направления","Период","Уровни (%)"]
[{"$nulls":3},"высокий","средний","низкий"]
[null,"Знает свои имя и фамилию, имена родителей","Начало уч. г."]
[null,null,"Конец уч. г."]
[null,"Рассматривает иллюстрированные издания детских книг, проявляет интерес к ним. ","Начало уч. г."]
[null,null,"Конец уч. г."]
[null,"Ориентируется в помещениях детского сада, называет свой поселок.","Начало уч. г."]
[null,null,"Конец уч. г."]
[null,"Знает и называет некоторые растения и животных, их детенышей, игрушки.","Начало уч. г."]
[null,null,"Конец уч. г."]
[null,"Правильно определяет количественное соотношение двух групп предметов, понимает конкретный смысл слов «больше», «меньше», «столько же»","Начало уч. г."]
[null,null,"Конец уч. г."]
[null,"Различает круг, квадрат, треугольник, предметы, имеющие углы и круглую форму","Начало уч. г."]
[null,null,"Конец уч. г."]
[null,"Умеет группировать предметы по цвету, размеру, форме","Начало уч. г."]
[null,null,"Конец уч. г."]
[null,"Понимает смысл обозначений: вверху-внизу, впереди-сзади, слева-справа, на, над-под, верхняя-нижняя. Различает день-ночь, зима-лето","Начало уч. г."]
[null,null,"Конец уч. г."]

{"sheet":"Речевое развитие","index":2,"n_rows":92,"n_cols":11,"rows_kept":92,"merged":[[4,1,5,1],[4,2,5,2],[4,3,4,7],[7,1,8,1],[9,1,10,1],[11,1,12,1],[13,1,14,1],[15,1,16,1],[17,1,18,1],[19,1,20,1],[21,1,22,1],[23,1,24,1],[25,1,26,1],[27,1,28,1],[29,1,30,1],[31,1,32,1],[33,1,34,1],[35,1,36,1],[37,1,38,1],[39,1,40,1],[41,1,42,1],[43,1,44,1],[45,1,46,1],[47,1,48,1],[49,1,50,1],[51,1,52,1],[53,1,54,1],[55,1,56,1],[57,1,58,1],[59,1,60,1],[61,1,62,1],[63,1,64,1],[65,1,66,1],[67,1,68,1],[70,1,71,1],[72,1,73,1],[74,1,75,1],[82,1,83,1],[82,2,83,2],[82,3,82,5],[84,1,85,1],[86,1,87,1],[88,1,89,1],[90,1,91,1]]}
["КАРТА ОЦЕНКИ УРОВНЕЙ ЭФФЕКТИВНОСТИ ПЕДАГОГИЧЕСКИХ ВОЗДЕЙСТВИЙ (по Афонькиной Ю.А. и Верещагиной Н.В.)"]
["Образовательная область \"Речевое развитие\"",{"$nulls":9},"Дата заполнения:"]
["Возрастная группа                1 младшая",{"$nulls":5},"Воспитатели:",{"$nulls":3},"Начало учебного года"]
[{"$nulls":10},"Конец учебного года"]
[null,"Ф. И. ребенка","Период","Критерии оценки уровней эффективности педагогических воздействий"]
[{"$nulls":3},"Рассматривает сюжетные картинки, способен кратко рассказать об увиденном","Отвечает на вопросы взрослого, касающихся ближайшего окружения","Использует все части речи, простые нераспространенные предложения и предложения с однородными членами предложения","Четко произносит все гласные звуки, определяет заданный гласный звук из двух","Итоговый показатель по каждому ребенку (среднее значение)"]
[null,1,2,3,4,5,6,11]
[null,1,"Начало уч. г.",3,1,2,3,{"$f":"SUM(D8:G8)/4","v":{"v":2.25,"d":"2"}}]
[null,null,"Конец уч. г.",{"$nulls":4},{"$f":"SUM(D9:G9)/4","v":0}]
[null,2,"Начало уч. г.",{"$nulls":4},0]
[null,null,"Конец уч. г.",{"$nulls":4},0]
[null,3,"Начало уч. г.",{"$nulls":4},0]
[null,null,"Конец уч. г.",{"$nulls":4},0]
[null,4,"Начало уч. г.",{"$nulls":4},0]
[null,null,"Конец уч. г.",{"$nulls":4},0]
[null,5,"Начало уч. г.",{"$nulls":4},0]
[null,null,"Конец уч. г.",{"$nulls":4},0]
[null,6,"Начало уч. г.",{"$nulls":4},0]
[null,null,"Конец уч. г.",{"$nulls":4},0]
[null,7,"Начало уч. г.",{"$nulls":4},0]
[null,null,"Конец уч. г.",{"$nulls":4},0]
[null,8,"Начало уч. г.",{"$nulls":4},0]
[null,null,"Конец уч. г.",{"$nulls":4},0]
[null,9,"Начало уч. г.",{"$nulls":4},0]
[null,null,"Конец уч. г.",{"$nulls":4},0]
[null,10,"Начало уч. г.",{"$nulls":4},0]
[null,null,"Конец уч. г.",{"$nulls":4},0]
[null,11,"Начало уч. г.",{"$nulls":4},0]
[null,null,"Конец уч. г.",{"$nulls":4},0]
[null,12,"Начало уч. г.",{"$nulls":4},0]
[null,null,"Конец уч. г.",{"$nulls":4},0]
[null,13,"Начало уч. г.",{"$nulls":4},0]
[null,null,"Конец уч. г.",{"$nulls":4},0]
[null,14,"Начало уч. г.",{"$nulls":4},0]
[null,null,"Конец уч. г.",{"$nulls":4},0]
[null,15,"Начало уч. г.",{"$nulls":4},0]
[null,null,"Конец уч. г.",{"$nulls":4},0]
[null,16,"Начало уч. г.",{"$nulls":4},0]
[null,null,"Конец уч. г.",{"$nulls":4},0]
[null,17,"Начало уч. г.",{"$nulls":4},0]
[null,null,"Конец уч. г.",{"$nulls":4},0]
[null,18,"Начало уч. г.",{"$nulls":4},0]
[null,null,"Конец уч. г.",{"$nulls":4},0]
[null,19,"Начало уч. г.",{"$nulls":4},0]
[null,null,"Конец уч. г.",{"$nulls":4},0]
[null,20,"Начало уч. г.",{"$nulls":4},0]
[null,null,"Конец уч. г.",{"$nulls":4},0]
[null,21,"Начало уч. г.",{"$nulls":4},0]
[null,null,"Конец уч. г.",{"$nulls":4},0]
[null,22,"Начало уч. г.",{"$nulls":4},0]
[null,null,"Конец уч. г.",{"$nulls":4},0]
[null,23,"Начало уч. г.",{"$nulls":4},0]
[null,null,"Конец уч. г.",{"$nulls":4},0]
[null,24,"Начало уч. г.",{"$nulls":4},0]
[null,null,"Конец уч. г.",{"$nulls":4},0]
[null,25,"Начало уч. г.",{"$nulls":4},0]
[null,null,"Конец уч. г.",{"$nulls":4},0]
[null,26,"Начало уч. г.",{"$nulls":4},0]
[null,null,"Конец уч. г.",{"$nulls":4},0]
[null,27,"Начало уч. г.",{"$nulls":4},0]
[null,null,"Конец уч. г.",{"$nulls":4},0]
[null,28,"Начало уч. г.",{"$nulls":4},0]
[null,null,"Конец уч. г.",{"$nulls":4},0]
[null,29,"Начало уч. г.",{"$nulls":4},0]
[null,null,"Конец уч. г.",{"$nulls":4},0]
[null,30,"Начало уч. г.",{"$nulls":4},0]
[null,null,"Конец уч. г.",{"$nulls":4},0]
[null,31,"Начало уч. г.",{"$nulls":4},0]
[null,null,"Конец уч. г.",{"$nulls":4},0]
[]
[null,"Высокий","Начало уч. г.",{"$f":"(В*100)/31","v":{"$error":"#NAME?"}},{"$f":"(В*100)/31","v":{"$error":"#NAME?"}},{"$error":"#NAME?"},{"$error":"#NAME?"},null,null,"В - количество высоких баллов"]
[null,null,"Конец уч. г.",{"$f":"(B*100)/31","v":{"$error":"#NAME?"}},{"$error":"#NAME?"},{"$error":"#NAME?"},{"$error":"#NAME?"}]
[null,"Средний","Начало уч. г.",{"$f":"(С*100)/31","v":{"$error":"#NAME?"}},{"$f":"(С*100)/31","v":{"$error":"#NAME?"}},{"$error":"#NAME?"},{"$error":"#NAME?"},null,null,"С - количество средних баллов"]
[null,null,"Конец уч. г.",{"$f":"(С*100)/31","v":{"$error":"#NAME?"}},{"$error":"#NAME?"},{"$error":"#NAME?"},{"$error":"#NAME?"}]
[null,"Низкий","Начало уч. г.",{"$f":"(Н*100)/31","v":{"$error":"#NAME?"}},{"$f":"(Н*100)/31","v":{"$error":"#NAME?"}},{"$error":"#NAME?"},{"$error":"#NAME?"},null,null,"Н - количество низких баллов"]
[null,null,"Конец уч. г.",{"$f":"(Н*100)/31","v":{"$error":"#NAME?"}},{"$error":"#NAME?"},{"$error":"#NAME?"},{"$error":"#NAME?"}]
[]
[{"$nulls":3},"Высокий 3 балла",null,null,"Процент считаем так: количество детей (допустим) с низким уровнем 6*100/25(количество детей в группе)=24%"]
[{"$nulls":3},"Средний 2 балла"]
[{"$nulls":3},"Низкий 1 балл"]
[null,"СВОДНАЯ ТАБЛИЦА ОЦЕНКИ УРОВНЕЙ ЭФФЕКТИВНОСТИ ПЕДАГОГИЧЕСКИХ ВОЗДЕЙСТВИЙ "]
[null,"Образовательная область «Речевое развитие»"]
[null,"Направления","Период","Уровни (%)"]
[{"$nulls":3},"высокий","средний","низкий"]
[null,"Рассматривает сюжетные картинки, способен кратко рассказать об увиденном","Начало уч. г."]
[null,null,"Конец уч. г."]
[null,"Отвечает на вопросы взрослого, касающихся ближайшего окружения","Начало уч. г."]
[null,null,"Конец уч. г."]
[null,"Использует все части речи, простые нераспространенные предложения и предложения с однородными членами предложения","Начало уч. г."]
[null,null,"Конец уч. г."]
[null,"Четко произносит все гласные звуки, определяет заданный гласный звук из двух","Начало уч. г."]
[null,null,"Конец уч. г."]

{"sheet":"Худ-эстетич","index":3,"n_rows":96,"n_cols":12,"rows_kept":96,"merged":[[4,1,5,1],[4,2,5,2],[4,3,4,9],[7,1,8,1],[9,1,10,1],[11,1,12,1],[13,1,14,1],[15,1,16,1],[17,1,18,1],[19,1,20,1],[21,1,22,1],[23,1,24,1],[25,1,26,1],[27,1,28,1],[29,1,30,1],[31,1,32,1],[33,1,34,1],[35,1,36,1],[37,1,38,1],[39,1,40,1],[41,1,42,1],[43,1,44,1],[45,1,46,1],[47,1,48,1],[49,1,50,1],[51,1,52,1],[53,1,54,1],[55,1,56,1],[57,1,58,1],[59,1,60,1],[61,1,62,1],[63,1,64,1],[65,1,66,1],[67,1,68,1],[70,1,71,1],[72,1,73,1],[74,1,75,1],[82,1,83,1],[82,2,83,2],[82,3,82,5],[84,1,85,1],[86,1,87,1],[88,1,89,1],[90,1,91,1],[92,1,93,1],[94,1,95,1]]}
["КАРТА ОЦЕНКИ УРОВНЕЙ ЭФФЕКТИВНОСТИ ПЕДАГОГИЧЕСКИХ ВОЗДЕЙСТВИЙ (по Афонькиной Ю.А. и Верещагиной Н.В.)"]
["Образовательная область «Художественно-эстетическое развитие»",{"$nulls":9},"Дата заполнения:"]
["Возрастная группа                1 младшая",{"$nulls":5},"Воспитатели:",{"$nulls":3},"Начало учебного года"]
[{"$nulls":10},"Конец учебного года"]
[null,"Ф. И. ребенка","Период","Критерии оценки уровней эффективности педагогических воздействий"]
[{"$nulls":3},"Знает, называет и правильно использует детали строительного материала. Изменяет постройки, надстраивая или заменяя одни детали другими","Изображает/ создает отдельные предметы, простые по композиции по содержанию сюжеты. Используя разные материалы.","Создает изображения предметов из готовых фигур. Украшает заготовки из бумаги разной формы","Слушает музыкальное произведение до конца. Узнает знакомые песни. Поет, не отставая и не опережая других.","Умеет выполнять танцевальные движения: кружиться в парах, притопывать попеременно ногами, двигаться под музыку с предметами.","Различает и называет музыкальные инструменты: металлофон, барабан. Замечает изменения в звучании (тихо-громко)","Итоговый показатель по каждому ребенку (среднее значение)"]
[null,1,2,3,4,5,6,7,8,9]
[null,1,"Начало уч. г.",3,1,2,3,3,2,{"$f":"SUM(D8:I8)/6","v":{"v":2.3333333333333335,"d":"2"}}]
[null,null,"Конец уч. г.",{"$nulls":6},{"$f":"SUM(D9:I9)/6","v":0}]
[null,2,"Начало уч. г.",{"$nulls":6},0]
[null,null,"Конец уч. г.",{"$nulls":6},0]
[null,3,"Начало уч. г.",{"$nulls":6},0]
[null,null,"Конец уч. г.",{"$nulls":6},0]
[null,4,"Начало уч. г.",{"$nulls":6},0]
[null,null,"Конец уч. г.",{"$nulls":6},0]
[null,5,"Начало уч. г.",{"$nulls":6},0]
[null,null,"Конец уч. г.",{"$nulls":6},0]
[null,6,"Начало уч. г.",{"$nulls":6},0]
[null,null,"Конец уч. г.",{"$nulls":6},0]
[null,7,"Начало уч. г.",{"$nulls":6},0]
[null,null,"Конец уч. г.",{"$nulls":6},0]
[null,8,"Начало уч. г.",{"$nulls":6},0]
[null,null,"Конец уч. г.",{"$nulls":6},0]
[null,9,"Начало уч. г.",{"$nulls":6},0]
[null,null,"Конец уч. г.",{"$nulls":6},0]
[null,10,"Начало уч. г.",{"$nulls":6},0]
[null,null,"Конец уч. г.",{"$nulls":6},0]
[null,11,"Начало уч. г.",{"$nulls":6},0]
[null,null,"Конец уч. г.",{"$nulls":6},0]
[null,12,"Начало уч. г.",{"$nulls":6},0]
[null,null,"Конец уч. г.",{"$nulls":6},0]
[null,13,"Начало уч. г.",{"$nulls":6},0]
[null,null,"Конец уч. г.",{"$nulls":6},0]
[null,14,"Начало уч. г.",{"$nulls":6},0]
[null,null,"Конец уч. г.",{"$nulls":6},0]
[null,15,"Начало уч. г.",{"$nulls":6},0]
[null,null,"Конец уч. г.",{"$nulls":6},0]
[null,16,"Начало уч. г.",{"$nulls":6},0]
[null,null,"Конец уч. г.",{"$nulls":6},0]
[null,17,"Начало уч. г.",{"$nulls":6},0]
[null,null,"Конец уч. г.",{"$nulls":6},0]
[null,18,"Начало уч. г.",{"$nulls":6},0]
[null,null,"Конец уч. г.",{"$nulls":6},0]
[null,19,"Начало уч. г.",{"$nulls":6},0]
[null,null,"Конец уч. г.",{"$nulls":6},0]
[null,20,"Начало уч. г.",{"$nulls":6},0]
[null,null,"Конец уч. г.",{"$nulls":6},0]
[null,21,"Начало уч. г.",{"$nulls":6},0]
[null,null,"Конец уч. г.",{"$nulls":6},0]
[null,22,"Начало уч. г.",{"$nulls":6},0]
[null,null,"Конец уч. г.",{"$nulls":6},0]
[null,23,"Начало уч. г.",{"$nulls":6},0]
[null,null,"Конец уч. г.",{"$nulls":6},0]
[null,24,"Начало уч. г.",{"$nulls":6},0]
[null,null,"Конец уч. г.",{"$nulls":6},0]
[null,25,"Начало уч. г.",{"$nulls":6},0]
[null,null,"Конец уч. г.",{"$nulls":6},0]
[null,26,"Начало уч. г.",{"$nulls":6},0]
[null,null,"Конец уч. г.",{"$nulls":6},0]
[null,27,"Начало уч. г.",{"$nulls":6},0]
[null,null,"Конец уч. г.",{"$nulls":6},0]
[null,28,"Начало уч. г.",{"$nulls":6},0]
[null,null,"Конец уч. г.",{"$nulls":6},0]
[null,29,"Начало уч. г.",{"$nulls":6},0]
[null,null,"Конец уч. г.",{"$nulls":6},0]
[null,30,"Начало уч. г.",{"$nulls":6},0]
[null,null,"Конец уч. г.",{"$nulls":6},0]
[null,31,"Начало уч. г.",{"$nulls":6},0]
[null,null,"Конец уч. г.",{"$nulls":6},0]
[]
[null,"Высокий","Начало уч. г.",{"$f":"(В*100)/31","v":{"$error":"#NAME?"}},{"$f":"(В*100)/31","v":{"$error":"#NAME?"}},{"$error":"#NAME?"},{"$error":"#NAME?"},{"$error":"#NAME?"},{"$error":"#NAME?"},null,null,"В - количество высоких баллов"]
[null,null,"Конец уч. г.",{"$f":"(B*100)/31","v":{"$error":"#NAME?"}},{"$error":"#NAME?"},{"$error":"#NAME?"},{"$error":"#NAME?"},{"$error":"#NAME?"},{"$error":"#NAME?"}]
[null,"Средний","Начало уч. г.",{"$f":"(С*100)/31","v":{"$error":"#NAME?"}},{"$f":"(С*100)/31","v":{"$error":"#NAME?"}},{"$error":"#NAME?"},{"$error":"#NAME?"},{"$error":"#NAME?"},{"$error":"#NAME?"},null,null,"С - количество средних баллов"]
[null,null,"Конец уч. г.",{"$f":"(С*100)/31","v":{"$error":"#NAME?"}},{"$error":"#NAME?"},{"$error":"#NAME?"},{"$error":"#NAME?"},{"$error":"#NAME?"},{"$error":"#NAME?"}]
[null,"Низкий","Начало уч. г.",{"$f":"(Н*100)/31","v":{"$error":"#NAME?"}},{"$f":"(Н*100)/31","v":{"$error":"#NAME?"}},{"$error":"#NAME?"},{"$error":"#NAME?"},{"$error":"#NAME?"},{"$error":"#NAME?"},null,null,"Н - количество низких баллов"]
[null,null,"Конец уч. г.",{"$f":"(Н*100)/31","v":{"$error":"#NAME?"}},{"$error":"#NAME?"},{"$error":"#NAME?"},{"$error":"#NAME?"},{"$error":"#NAME?"},{"$error":"#NAME?"}]
[]
[{"$nulls":3},"Высокий 3 балла",null,null,"Процент считаем так: количество детей (допустим) с низким уровнем 6*100/25(количество детей в группе)=24%"]
[{"$nulls":3},"Средний 2 балла"]
[{"$nulls":3},"Низкий 1 балл"]
[null,"СВОДНАЯ ТАБЛИЦА ОЦЕНКИ УРОВНЕЙ ЭФФЕКТИВНОСТИ ПЕДАГОГИЧЕСКИХ ВОЗДЕЙСТВИЙ "]
[null,"Образовательная область «Художественно-эстетическое развитие»"]
[null,"Направления","Период","Уровни (%)"]
[{"$nulls":3},"высокий","средний","низкий"]
[null,"Знает, называет и правильно использует детали строительного материала. Изменяет постройки, надстраивая или заменяя одни детали другими","Начало уч. г."]
[null,null,"Конец уч. г."]
[null,"Изображает/ создает отдельные предметы, простые по композиции по содержанию сюжеты. Используя разные материалы.","Начало уч. г."]
[null,null,"Конец уч. г."]
[null,"Создает изображения предметов из готовых фигур. Украшает заготовки из бумаги разной формы","Начало уч. г."]
[null,null,"Конец уч. г."]
[null,"Слушает музыкальное произведение до конца. Узнает знакомые песни. Поет, не отставая и не опережая других.","Начало уч. г."]
[null,null,"Конец уч. г."]
[null,"Умеет выполнять танцевальные движения: кружиться в парах, притопывать попеременно ногами, двигаться под музыку с предметами.","Начало уч.г."]
[null,null,"Конец уч.г."]
[null,"Различает и называет музыкальные инструменты: металлофон, барабан. Замечает изменения в звучании (тихо-громко)","Начало уч.г."]
[null,null,"Конец уч.г."]

{"sheet":"Физ развитие","index":4,"n_rows":96,"n_cols":11,"rows_kept":96,"merged":[[4,0,5,0],[4,1,5,1],[4,2,4,8],[7,0,8,0],[9,0,10,0],[11,0,12,0],[13,0,14,0],[15,0,16,0],[17,0,18,0],[19,0,20,0],[21,0,22,0],[23,0,24,0],[25,0,26,0],[27,0,28,0],[29,0,30,0],[31,0,32,0],[33,0,34,0],[35,0,36,0],[37,0,38,0],[39,0,40,0],[41,0,42,0],[43,0,44,0],[45,0,46,0],[47,0,48,0],[49,0,50,0],[51,0,52,0],[53,0,54,0],[55,0,56,0],[57,0,58,0],[59,0,60,0],[61,0,62,0],[63,0,64,0],[65,0,66,0],[67,0,68,0],[70,0,71,0],[72,0,73,0],[74,0,75,0],[82,0,83,0],[82,1,83,1],[82,2,82,4],[84,0,85,0],[86,0,87,0],[88,0,89,0],[90,0,91,0],[92,0,93,0],[94,0,95,0]]}
["КАРТА ОЦЕНКИ УРОВНЕЙ ЭФФЕКТИВНОСТИ ПЕДАГОГИЧЕСКИХ ВОЗДЕЙСТВИЙ (по Афонькиной Ю.А. и Верещагиной Н.В.)"]
["Образовательная область «Физическое развитие»",{"$nulls":8},"Дата заполнения:"]
["Возрастная группа                1 младшая",{"$nulls":5},"Воспитатели:",null,null,"Начало учебного года"]
[{"$nulls":9},"Конец учебного года"]
["Ф. И. ребенка","Период","Критерии оценки уровней эффективности педагогических воздействий"]
[null,null,"Владеет простейшими навыками поведения во время еды, умывания","Приучен к опрятности, замечает и устраняет непорядок в одежде","Умеет ходить и бегать, сохраняя равновесие, в разных направлениях по указанию взрослого","Может ползать на четвереньках, лазать по лесенке-стремянке. Гимнастической стенке произвольным способом","Энергично отталкивается в прыжках на двух ногах, прыгает в длину с места","Катает мяч в заданном направлении с расстояния, бросает мяч двумя руками от груди, из-за головы; ударяет мячом об пол, бросает вверх и ловит; метает предметы правой и левой руками","Итоговый показатель по каждому ребенку (среднее значение)"]
[1,2,3,4,5,6,7,8,9]
[1,"Начало уч. г.",3,1,2,3,3,2,{"$f":"SUM(C8:H8)/6","v":{"v":2.3333333333333335,"d":"2"}}]
[null,"Конец уч. г.",{"$nulls":6},{"$f":"SUM(C9:H9)/6","v":0}]
[2,"Начало уч. г.",{"$nulls":6},0]
[null,"Конец уч. г.",{"$nulls":6},0]
[3,"Начало уч. г.",{"$nulls":6},0]
[null,"Конец уч. г.",{"$nulls":6},0]
[4,"Начало уч. г.",{"$nulls":6},0]
[null,"Конец уч. г.",{"$nulls":6},0]
[5,"Начало уч. г.",{"$nulls":6},0]
[null,"Конец уч. г.",{"$nulls":6},0]
[6,"Начало уч. г.",{"$nulls":6},0]
[null,"Конец уч. г.",{"$nulls":6},0]
[7,"Начало уч. г.",{"$nulls":6},0]
[null,"Конец уч. г.",{"$nulls":6},0]
[8,"Начало уч. г.",{"$nulls":6},0]
[null,"Конец уч. г.",{"$nulls":6},0]
[9,"Начало уч. г.",{"$nulls":6},0]
[null,"Конец уч. г.",{"$nulls":6},0]
[10,"Начало уч. г.",{"$nulls":6},0]
[null,"Конец уч. г.",{"$nulls":6},0]
[11,"Начало уч. г.",{"$nulls":6},0]
[null,"Конец уч. г.",{"$nulls":6},0]
[12,"Начало уч. г.",{"$nulls":6},0]
[null,"Конец уч. г.",{"$nulls":6},0]
[13,"Начало уч. г.",{"$nulls":6},0]
[null,"Конец уч. г.",{"$nulls":6},0]
[14,"Начало уч. г.",{"$nulls":6},0]
[null,"Конец уч. г.",{"$nulls":6},0]
[15,"Начало уч. г.",{"$nulls":6},0]
[null,"Конец уч. г.",{"$nulls":6},0]
[16,"Начало уч. г.",{"$nulls":6},0]
[null,"Конец уч. г.",{"$nulls":6},0]
[17,"Начало уч. г.",{"$nulls":6},0]
[null,"Конец уч. г.",{"$nulls":6},0]
[18,"Начало уч. г.",{"$nulls":6},0]
[null,"Конец уч. г.",{"$nulls":6},0]
[19,"Начало уч. г.",{"$nulls":6},0]
[null,"Конец уч. г.",{"$nulls":6},0]
[20,"Начало уч. г.",{"$nulls":6},0]
[null,"Конец уч. г.",{"$nulls":6},0]
[21,"Начало уч. г.",{"$nulls":6},0]
[null,"Конец уч. г.",{"$nulls":6},0]
[22,"Начало уч. г.",{"$nulls":6},0]
[null,"Конец уч. г.",{"$nulls":6},0]
[23,"Начало уч. г.",{"$nulls":6},0]
[null,"Конец уч. г.",{"$nulls":6},0]
[24,"Начало уч. г.",{"$nulls":6},0]
[null,"Конец уч. г.",{"$nulls":6},0]
[25,"Начало уч. г.",{"$nulls":6},0]
[null,"Конец уч. г.",{"$nulls":6},0]
[26,"Начало уч. г.",{"$nulls":6},0]
[null,"Конец уч. г.",{"$nulls":6},0]
[27,"Начало уч. г.",{"$nulls":6},0]
[null,"Конец уч. г.",{"$nulls":6},0]
[28,"Начало уч. г.",{"$nulls":6},0]
[null,"Конец уч. г.",{"$nulls":6},0]
[29,"Начало уч. г.",{"$nulls":6},0]
[null,"Конец уч. г.",{"$nulls":6},0]
[30,"Начало уч. г.",{"$nulls":6},0]
[null,"Конец уч. г.",{"$nulls":6},0]
[31,"Начало уч. г.",{"$nulls":6},0]
[null,"Конец уч. г.",{"$nulls":6},0]
[]
["Высокий ","Начало уч. г.",{"$f":"(В*100)/31","v":{"$error":"#NAME?"}},{"$f":"(В*100)/31","v":{"$error":"#NAME?"}},{"$error":"#NAME?"},{"$error":"#NAME?"},{"$error":"#NAME?"},{"$error":"#NAME?"},null,null,"В - количество высоких баллов"]
[null,"Конец уч. г.",{"$f":"(B*100)/31","v":{"$error":"#NAME?"}},{"$error":"#NAME?"},{"$error":"#NAME?"},{"$error":"#NAME?"},{"$error":"#NAME?"},{"$error":"#NAME?"}]
["Средний","Начало уч. г.",{"$f":"(С*100)/31","v":{"$error":"#NAME?"}},{"$f":"(С*100)/31","v":{"$error":"#NAME?"}},{"$error":"#NAME?"},{"$error":"#NAME?"},{"$error":"#NAME?"},{"$error":"#NAME?"},null,null,"С - количество средних баллов"]
[null,"Конец уч. г.",{"$f":"(С*100)/31","v":{"$error":"#NAME?"}},{"$error":"#NAME?"},{"$error":"#NAME?"},{"$error":"#NAME?"},{"$error":"#NAME?"},{"$error":"#NAME?"}]
["Низкий","Начало уч. г.",{"$f":"(Н*100)/31","v":{"$error":"#NAME?"}},{"$f":"(Н*100)/31","v":{"$error":"#NAME?"}},{"$error":"#NAME?"},{"$error":"#NAME?"},{"$error":"#NAME?"},{"$error":"#NAME?"},null,null,"Н - количество низких баллов"]
[null,"Конец уч. г.",{"$f":"(Н*100)/31","v":{"$error":"#NAME?"}},{"$error":"#NAME?"},{"$error":"#NAME?"},{"$error":"#NAME?"},{"$error":"#NAME?"},{"$error":"#NAME?"}]
[]
[null,null,"Высокий 3 балла",null,null,"Процент считаем так: количество детей (допустим) с низким уровнем 6*100/25(количество детей в группе)=24%"]
[null,null,"Средний 2 балла"]
[null,null,"Низкий 1 балл"]
["СВОДНАЯ ТАБЛИЦА ОЦЕНКИ УРОВНЕЙ ЭФФЕКТИВНОСТИ ПЕДАГОГИЧЕСКИХ ВОЗДЕЙСТВИЙ "]
["Образовательная область «Физическое развитие»"]
["Направления","Период","Уровни (%)"]
[null,null,"высокий","средний","низкий"]
["Владеет простейшими навыками поведения во время еды, умывания","Начало уч. г."]
[null,"Конец уч. г."]
["Приучен к опрятности, замечает и устраняет непорядок в одежде","Начало уч. г."]
[null,"Конец уч. г."]
["Умеет ходить и бегать, сохраняя равновесие, в разных направлениях по указанию взрослого","Начало уч. г."]
[null,"Конец уч. г."]
["Может ползать на четвереньках, лазать по лесенке-стремянке. Гимнастической стенке произвольным способом","Начало уч. г."]
[null,"Конец уч. г."]
["Энергично отталкивается в прыжках на двух ногах, прыгает в длину с места","Начало уч. г."]
[null,"Конец уч. г."]
["Катает мяч в заданном направлении с расстояния, бросает мяч двумя руками от груди, из-за головы; ударяет мячом об пол, бросает вверх и ловит; метает предметы правой и левой руками","Начало уч.г."]
[null,"Конец уч.г."]